bitfinex/quotes_ETHUSD_20241129
["timestamp","ask_amount","ask_price","bid_price","bid_amount"]
[1732864136251,1.16587158,3569.4,3568.7,0.7899]
[1732864136451,0.8057,3569.7,3568.9,2.80198]
[1732864136657,4.0,3569.0,3568.8,4.09867577]
[1732864136869,4.0,3569.0,3568.8,4.04678321]
[1732864137088,4.0,3569.0,3568.9,2.80198]
[1732864137292,0.8057,3569.7,3569.0,2.80186]
[1732864137459,3.22110075,3569.6,3568.9,2.80197]
[1732864137666,0.68186558,3569.5,3568.9,2.80197]
[1732864137888,0.68186558,3569.4,3568.7,6.39409]
[1732864138093,0.68186558,3569.3,3568.7,3.59197]
[1732864138297,0.26225483,3569.2,3568.8,2.80202]
[1732864138453,0.26225483,3569.1,3568.8,2.80202]
[1732864138792,2.80151,3569.5,3568.8,2.80202]
[1732864138793,0.26225483,3569.0,3568.8,2.80202]
[1732864138991,2.80151,3569.5,3568.8,2.80202]
[1732864139160,0.681673,3569.4,3568.8,2.80202]
[1732864139497,0.681673,3569.3,3568.8,2.80202]
[1732864139666,0.26218192,3569.2,3568.8,2.80202]
[1732864139856,0.26218192,3569.1,3568.8,2.80202]
[1732864140193,0.26218192,3569.0,3568.8,3.57871876]
[1732864140399,4.77292158,3569.7,3568.1,0.7886]
[1732864140400,2.80199,3568.9,3568.1,0.7886]
[1732864140552,0.26211206,3568.8,3568.2,2.80251]
[1732864140750,2.80199,3568.9,3568.2,2.80251]
[1732864140751,0.26211206,3568.7,3568.2,2.80251]
[1732864140994,2.80199,3568.9,3568.2,2.80251]
[1732864140995,0.26211206,3568.6,3568.2,2.80251]
[1732864141179,3.22143599,3568.9,3568.2,2.80251]
[1732864141379,0.26216771,3568.8,3568.2,2.80251]
[1732864141552,0.26216771,3568.7,3568.2,2.80251]
[1732864141753,0.26216771,3568.6,3568.2,2.80251]
[1732864141993,2.80199,3568.9,3568.2,2.80251]
[1732864142196,0.26218466,3568.8,3568.2,2.80251]
[1732864142359,0.26218466,3568.7,3568.2,2.80251]
[1732864142560,0.26218466,3568.6,3568.2,2.80251]
[1732864142863,2.80199,3568.9,3568.2,2.80251]
[1732864143088,0.68166054,3568.8,3568.2,2.80251]
[1732864143270,0.26217981,3568.7,3568.2,2.80251]
[1732864143478,0.41948073,3568.8,3568.2,2.80251]
[1732864143479,0.26217981,3568.6,3568.2,2.80251]
[1732864143670,0.26217981,3568.5,3568.2,2.80251]
[1732864143873,0.41948073,3568.8,3568.2,2.80251]
[1732864144068,0.26207392,3568.7,3568.2,2.80251]
[1732864144280,0.26207392,3568.6,3568.2,2.80251]
[1732864144478,0.26207392,3568.5,3568.2,2.80251]
[1732864144696,0.41948073,3568.8,3568.2,2.80251]
[1732864144894,0.26205372,3568.7,3568.2,2.80251]
[1732864145166,0.26205372,3568.6,3568.2,2.80251]
[1732864145373,0.26205372,3568.5,3568.3,0.639379]
[1732864145706,0.41948073,3568.8,3568.3,0.639379]
[1732864146006,0.26206553,3568.7,3568.2,2.80251]
[1732864146208,0.26206553,3568.6,3568.2,2.80251]
[1732864146393,0.41948073,3568.8,3568.5,2.80229]
[1732864146602,0.26206478,3568.7,3568.6,0.7949]
[1732864146908,0.7542,3569.1,3568.6,0.7949]
[1732864147070,0.26210779,3569.0,3568.6,0.7949]
[1732864147266,1.17368073,3569.1,3568.6,0.7949]
[1732864147267,0.26210779,3568.9,3568.6,0.7949]
[1732864147467,0.26210779,3568.8,3568.6,0.7949]
[1732864147775,0.41935888,3569.0,3568.5,2.80229]
[1732864148001,0.26210285,3568.9,3568.5,2.80229]
[1732864148175,0.26210285,3568.8,3568.6,0.05190847]
[1732864148387,0.41935888,3569.0,3568.6,0.05190847]
[1732864148586,0.26207571,3568.9,3568.6,0.05190847]
[1732864148903,0.26207571,3568.8,3568.6,0.05190847]
[1732864149106,1.17352225,3569.1,3568.6,0.05190847]
[1732864149305,0.26207301,3569.0,3568.6,0.05190847]
[1732864149510,0.26207301,3568.9,3568.8,3.60225]
[1732864149809,0.8032,3569.4,3568.8,3.60225]
[1732864149810,2.80175,3569.2,3568.8,0.8002]
[1732864149972,0.26206294,3569.1,3568.8,0.05184866]
[1732864150169,2.80175,3569.2,3568.5,3.62729]
[1732864150170,0.26206294,3569.0,3568.5,3.62729]
[1732864150399,3.22105605,3569.2,3568.5,3.62729]
[1732864150585,0.26201478,3569.1,3568.6,0.05190847]
[1732864150775,0.26201478,3569.0,3568.6,0.05190847]
[1732864151001,2.80175,3569.2,3568.6,0.05190847]
[1732864151210,0.8121,3569.0,3568.6,0.05190847]
[1732864151390,0.26201957,3568.9,3568.6,0.05190847]
[1732864151589,0.26201957,3568.8,3568.7,0.05187857]
[1732864151797,0.41922681,3569.2,3568.6,0.7977]
[1732864151991,0.6812257,3569.1,3568.6,0.7977]
[1732864152197,0.26199889,3569.0,3568.7,0.05187857]
[1732864152398,0.26199889,3568.9,3568.7,0.05187857]
[1732864152597,0.26199889,3568.8,3568.7,0.05187857]
[1732864152794,0.41922681,3569.2,3568.7,0.05187857]
[1732864153020,0.26199325,3569.1,3568.7,0.05187857]
[1732864153184,3.22134268,3569.2,3568.7,0.05187857]
[1732864153381,0.2619952,3569.1,3568.7,0.05187857]
[1732864153615,0.2619952,3569.0,3568.7,0.05187857]
[1732864153821,0.2619952,3568.9,3568.7,0.05187857]
[1732864153987,0.2619952,3568.8,3568.4,3.63503]
[1732864154187,2.80206,3568.8,3568.5,0.05193838]
[1732864154423,2.80206,3568.8,3568.1,3.6175]
[1732864154424,0.26197349,3568.7,3568.1,3.6175]
[1732864154729,2.80206,3568.8,3568.6,0.05190847]
[1732864154896,0.26197909,3568.7,3568.1,3.6175]
[1732864155081,2.80206,3568.8,3568.1,3.6175]
[1732864155281,0.26198279,3568.7,3568.1,3.6175]
[1732864155476,2.80206,3568.8,3568.1,3.6175]
[1732864155723,2.80221,3568.6,3568.1,0.8149]
[1732864156305,0.7766,3569.0,3568.1,0.8149]
[1732864156306,2.80208,3568.8,3568.1,0.8149]
[1732864156482,0.26197693,3568.7,3568.1,0.8149]
[1732864156678,0.41916309,3568.9,3568.1,0.8149]
[1732864156679,3.06427358,3568.6,3568.1,0.8149]
[1732864156884,2.80233,3568.5,3567.8,2.80284]
[1732864157107,3.87259463,3568.5,3567.8,3.57214]
[1732864157504,3.61061,3568.5,3567.8,3.57214]
[1732864157899,3.61061,3568.5,3567.8,0.7693]
[1732864158101,3.61061,3568.5,3567.9,2.80275]
[1732864160536,3.61061,3568.5,3567.8,0.7693]
[1732864161048,3.61061,3568.5,3567.8,3.57211]
[1732864161339,0.8083,3568.5,3567.9,2.80275]
[1732864163218,0.8083,3568.5,3568.0,0.05045557]
[1732864163932,3.58277,3568.8,3568.0,2.85313557]
[1732864164110,0.26199498,3568.7,3568.2,2.80252]
[1732864164307,0.26199498,3568.6,3568.2,2.80252]
[1732864164508,1.19989197,3568.8,3568.3,2.85275582]
[1732864164708,0.26199925,3568.7,3568.6,1.24472321]
[1732864164921,0.41922794,3569.3,3568.8,0.7758]
[1732864165126,0.26204775,3569.2,3568.9,2.80192]
[1732864165327,0.41922794,3569.5,3568.9,2.85210637]
[1732864165537,0.26200022,3569.4,3568.9,2.85210637]
[1732864165839,0.26200022,3569.3,3568.9,0.05018637]
[1732864166146,0.26200022,3569.2,3568.9,0.05018637]
[1732864166306,3.22053494,3569.5,3568.9,0.05018637]
[1732864166640,0.26186707,3569.4,3568.8,3.57782]
[1732864166935,2.80152,3569.5,3568.8,3.57782]
[1732864166936,0.26186707,3569.3,3569.0,0.05015646]
[1732864167147,0.26186707,3569.2,3568.9,0.05018637]
[1732864167306,3.22053494,3569.5,3569.1,0.05012656]
[1732864167507,0.26185283,3569.4,3568.8,3.57782]
[1732864167814,2.80152,3569.5,3568.8,3.57782]
[1732864167815,0.26185283,3569.3,3568.8,3.57782]
[1732864168026,0.26185283,3569.2,3568.9,0.05018637]
[1732864168215,3.22053494,3569.5,3568.9,0.05018637]
[1732864168398,0.26183364,3569.4,3568.9,0.05018637]
[1732864168597,0.26183364,3569.3,3568.9,0.05018637]
[1732864168942,0.26183364,3569.2,3568.9,0.05018637]
[1732864169136,3.22053494,3569.5,3568.9,0.05018637]
[1732864169440,0.26180217,3569.4,3568.9,0.05018637]
[1732864169612,0.26180217,3569.3,3568.9,0.05018637]
[1732864169938,0.41901494,3569.5,3568.9,0.05018637]
[1732864169939,1.07350217,3569.2,3568.9,0.05018637]
[1732864170139,3.06363217,3569.1,3568.9,0.05018637]
[1732864170344,0.26180217,3569.0,3568.5,0.7707]
[1732864170642,0.26180217,3568.9,3568.5,0.7707]
[1732864170838,2.80196,3569.0,3568.5,0.7707]
[1732864171049,0.26177808,3568.9,3568.5,0.7707]
[1732864171253,2.80196,3569.0,3568.5,0.7707]
[1732864171471,0.26172253,3568.9,3568.5,0.7707]
[1732864171651,2.80196,3569.0,3568.5,0.7707]
[1732864171952,0.26165885,3568.9,3568.5,0.7707]
[1732864172254,2.80196,3569.0,3568.5,0.7707]
[1732864172429,0.2616609,3568.9,3568.5,0.7707]
[1732864172630,2.80196,3569.0,3568.5,0.7707]
[1732864172827,0.26166273,3568.9,3568.2,0.7955]
[1732864173152,0.26166273,3568.8,3568.2,3.59795]
[1732864173320,2.80204,3568.9,3568.2,3.59795]
[1732864173519,0.26165455,3568.8,3568.2,3.59795]
[1732864173743,2.80204,3568.9,3568.2,4.36248432]
[1732864173959,0.26164659,3568.8,3568.2,1.56003432]
[1732864174264,2.80215,3568.7,3568.2,0.7955]
[1732864174428,0.7942,3568.7,3568.2,0.7955]
[1732864174940,0.7942,3568.7,3568.0,2.80267]
[1732864174941,3.06386874,3568.6,3568.0,2.80267]
[1732864175143,0.71994772,3568.7,3568.0,2.80267]
[1732864175144,3.52215772,3568.7,3568.0,2.80267]
[1732864175337,0.26163409,3568.6,3568.0,2.80267]
[1732864175545,2.80223,3568.6,3567.9,0.7988]
[1732864175729,2.80223,3568.6,3567.9,4.43340605]
[1732864177343,2.80223,3568.6,3567.9,3.60155]
[1732864178251,2.80223,3568.6,3568.0,0.04862243]
[1732864178814,2.8023,3568.5,3568.0,0.04862243]
[1732864187025,2.80223,3568.6,3568.0,0.04862243]
[1732864187955,0.71994772,3568.7,3568.0,0.04862243]
[1732864188160,2.80231,3568.5,3568.0,0.04862243]
[1732864188724,3.0,3569.2,3568.2,1.24472321]
[1732864188967,3.0,3569.0,3568.4,2.80237]
[1732864189165,0.26159144,3568.9,3568.3,3.61305]
[1732864189332,0.26159144,3568.8,3568.5,0.0454972]
[1732864189535,2.80199,3568.9,3568.3,3.61305]
[1732864189825,2.80199,3568.9,3568.3,4.37908732]
[1732864190051,0.2616072,3568.8,3568.4,0.04552711]
[1732864190367,2.80199,3568.9,3568.4,0.04552711]
[1732864190527,0.26161697,3568.8,3568.4,0.04552711]
[1732864190723,2.80199,3568.9,3568.4,0.04552711]
[1732864190928,0.26161687,3568.8,3568.4,0.04552711]
[1732864191137,2.80199,3568.9,3568.4,0.04552711]
[1732864191337,0.26161543,3568.8,3568.4,0.04552711]
[1732864191543,2.80207,3568.8,3568.4,0.04552711]
[1732864192244,0.26169991,3568.7,3568.4,0.04552711]
[1732864192442,2.80207,3568.8,3568.4,0.04552711]
[1732864192754,0.26171344,3568.7,3568.4,0.04552711]
[1732864192950,2.80214,3568.7,3568.4,0.04552711]
[1732864193734,2.80223,3568.6,3568.0,0.8166]
[1732864193935,2.80223,3568.6,3568.5,0.0454972]
[1732864194153,2.80223,3568.6,3568.0,0.8166]
[1732864194363,2.80223,3568.6,3568.5,0.0454972]
[1732864194562,3.0639694,3568.6,3568.0,0.8166]
[1732864194872,2.80223,3568.6,3568.5,0.0454972]
[1732864195176,3.06399071,3568.6,3568.1,0.04561686]
[1732864195345,2.80223,3568.6,3568.5,0.0454972]
[1732864195545,3.06403272,3568.6,3568.0,3.61928]
[1732864195760,2.80223,3568.6,3568.5,0.04546977]
[1732864195966,3.06404137,3568.6,3568.0,3.61928]
[1732864196168,2.80223,3568.6,3568.5,0.04546977]
[1732864196350,3.06425531,3568.6,3568.0,3.61928]
[1732864196554,2.80223,3568.6,3568.5,0.04546977]
[1732864196755,3.06427235,3568.6,3568.0,3.61928]
[1732864196982,2.80223,3568.6,3568.5,0.04546977]
[1732864197157,3.06431893,3568.6,3568.0,3.61928]
[1732864197360,2.80223,3568.6,3568.5,0.04546977]
[1732864197678,2.8023,3568.5,3568.0,0.8166]
[1732864200279,2.8024,3568.4,3568.0,0.8166]
[1732864200452,2.80222,3568.6,3568.0,0.8166]
[1732864200659,2.80224,3568.6,3568.0,0.8166]
[1732864201488,2.8027,3568.0,3567.5,0.7928]
[1732864201643,2.80254,3568.2,3567.5,3.59582]
[1732864202288,2.80261,3568.1,3567.5,0.7928]
[1732864203081,2.80269,3568.0,3567.5,0.7928]
[1732864203467,3.56126,3568.3,3567.5,3.59586]
[1732864203856,2.8023,3568.5,3567.7,1.24472321]
[1732864204057,2.8024,3568.4,3567.8,0.7805]
[1732864204589,3.56102,3568.6,3567.9,2.80274]
[1732864204748,0.7588,3568.6,3567.8,0.7805]
[1732864204944,0.68129332,3568.5,3567.9,2.80276]
[1732864205264,0.26203589,3568.4,3568.0,0.0425423]
[1732864205471,0.26203589,3568.3,3568.0,0.0425423]
[1732864205788,0.26203589,3568.2,3568.0,0.0425423]
[1732864205983,3.56103,3568.6,3568.0,0.0425423]
[1732864206196,0.68124217,3568.5,3568.0,0.0425423]
[1732864206488,0.26201622,3568.4,3568.0,0.0425423]
[1732864206690,0.26201622,3568.3,3568.0,0.0425423]
[1732864206890,0.26201622,3568.2,3568.0,0.0425423]
[1732864207093,0.41920178,3568.5,3568.0,0.80988685]
[1732864207278,0.2619451,3568.4,3568.0,0.80988685]
[1732864207593,0.2619451,3568.3,3568.0,0.80988685]
[1732864207886,0.41906912,3568.5,3568.0,0.80988685]
[1732864208182,0.26190474,3568.4,3568.0,0.80988685]
[1732864208383,0.26190474,3568.3,3568.1,0.43931469]
[1732864208562,3.22126419,3568.6,3568.1,0.43931469]
[1732864208563,2.80223,3568.6,3568.1,0.43931469]
[1732864208763,0.26189644,3568.5,3568.2,0.04109404]
[1732864208948,0.26189644,3568.4,3568.2,0.04109404]
[1732864209148,0.26189644,3568.3,3567.9,2.80276]
[1732864209400,2.80223,3568.6,3568.3,0.04106412]
[1732864209551,0.26187138,3568.5,3567.9,2.80273]
[1732864209753,2.80223,3568.6,3568.4,0.04103421]
[1732864209951,0.26186345,3568.5,3567.9,2.80273]
[1732864210261,0.26186345,3568.4,3567.9,2.80273]
[1732864210594,0.26186345,3568.3,3567.9,2.80273]
[1732864210886,2.80223,3568.6,3567.9,2.80273]
[1732864211091,3.22113182,3568.6,3567.9,2.80273]
[1732864211289,0.52357322,3568.5,3567.9,3.6226742]
[1732864211453,0.26180086,3568.5,3567.9,3.6226742]
[1732864211648,0.26178821,3568.4,3567.9,3.6226742]
[1732864211848,0.26178821,3568.3,3567.9,3.6226742]
[1732864212090,0.26180086,3568.5,3567.9,3.6226742]
[1732864212397,0.26182802,3568.4,3567.9,3.6226742]
[1732864212569,0.26182802,3568.3,3568.0,0.90193862]
[1732864212891,0.26182951,3568.2,3568.0,0.90193862]
[1732864213096,3.48305717,3568.5,3567.8,0.7805]
[1732864213320,3.06425357,3568.4,3567.8,0.7805]
[1732864213455,0.26182357,3568.3,3567.8,0.7805]
[1732864213793,0.26182357,3568.2,3567.8,3.58327]
[1732864213982,0.68067183,3568.5,3567.9,0.638626]
[1732864214297,0.26179031,3568.4,3567.9,0.638626]
[1732864214471,0.26179031,3568.3,3567.9,0.638626]
[1732864214793,3.06411086,3568.5,3567.9,0.638626]
[1732864214994,3.0641731,3568.4,3567.9,0.638626]
[1732864215164,3.0641731,3568.4,3567.8,0.7805]
[1732864215165,0.2617831,3568.3,3567.8,0.7805]
[1732864215507,2.80239,3568.4,3567.9,0.04126862]
[1732864215662,0.26178567,3568.3,3567.9,0.04126862]
[1732864215855,2.80239,3568.4,3567.9,0.04126862]
[1732864216058,0.26177653,3568.3,3567.9,0.04126862]
[1732864216284,2.80239,3568.4,3567.9,0.04126862]
[1732864216555,0.26176225,3568.3,3567.9,0.04126862]
[1732864216752,2.80239,3568.4,3567.9,0.40373148]
[1732864217088,0.26175744,3568.3,3567.9,0.40373148]
[1732864217293,2.80239,3568.4,3567.9,0.40373148]
[1732864217458,0.26176084,3568.3,3567.9,0.40373148]
[1732864217658,2.80239,3568.4,3567.9,0.40373148]
[1732864217858,0.26175698,3568.3,3567.9,0.40373148]
[1732864218171,2.80239,3568.4,3567.9,0.40373148]
[1732864218369,0.26177502,3568.3,3567.9,0.04126862]
[1732864218571,0.26177502,3568.2,3567.9,0.04126862]
[1732864218894,2.80239,3568.4,3567.9,0.04126862]
[1732864219095,0.26176913,3568.3,3567.9,0.04126862]
[1732864219286,2.80239,3568.4,3567.9,0.04126862]
[1732864219487,0.26179377,3568.3,3567.9,0.04126862]
[1732864219695,0.26179377,3568.2,3567.9,0.04126862]
[1732864219887,2.80239,3568.4,3567.9,0.04126862]
[1732864220182,0.26178758,3568.3,3567.9,0.04126862]
[1732864220381,0.26178758,3568.2,3567.9,0.04126862]
[1732864220697,2.80239,3568.4,3567.9,0.40373548]
[1732864220867,0.26194781,3568.3,3567.9,0.04126862]
[1732864221057,0.26194781,3568.2,3567.9,0.04126862]
[1732864221251,2.80247,3568.3,3567.9,0.04126862]
[1732864221491,0.2619991,3568.2,3567.9,0.04126862]
[1732864221703,2.80247,3568.3,3567.9,0.04126862]
[1732864221995,0.26200502,3568.2,3567.9,0.04126862]
[1732864222222,2.80247,3568.3,3567.9,0.04126862]
[1732864222394,0.26204549,3568.2,3567.9,0.04126862]
[1732864222598,0.26204796,3568.1,3567.9,0.04126862]
[1732864222892,2.8023,3568.5,3567.9,0.04126862]
[1732864222893,2.80269,3568.0,3567.9,0.04126862]
[1732864223104,3.06472511,3568.0,3567.9,0.04126862]
[1732864223596,3.06472511,3568.0,3567.5,0.8094]
[1732864223752,2.80269,3568.0,3567.9,0.04126862]
[1732864223959,3.06475317,3568.0,3567.5,0.8094]
[1732864224160,0.26206317,3567.9,3567.5,0.8094]
[1732864224499,2.80276,3567.9,3567.5,0.8094]
[1732864226302,2.80285,3567.8,3567.5,0.8094]
[1732864226798,2.80293,3567.7,3567.5,0.8094]
[1732864228370,2.803,3567.6,3567.5,0.8094]
[1732864228781,2.803,3567.6,3567.3,1.99652321]
[1732864229070,2.803,3567.6,3567.3,1.00781453]
[1732864230305,2.80315,3567.5,3567.3,1.00781453]
[1732864230468,2.80315,3567.5,3567.3,0.7518]
[1732864232932,2.80316,3567.4,3567.3,0.7518]
[1732864233371,2.80371,3566.7,3566.6,0.7696]
[1732864233589,2.80379,3566.6,3566.1,2.01432321]
[1732864233791,2.80379,3566.6,3566.2,0.5630578]
[1732864234588,0.7588,3567.0,3565.5,0.7696]
[1732864234821,2.80421,3566.1,3565.5,0.7696]
[1732864235124,2.80421,3566.1,3565.6,0.05996289]
[1732864235340,2.80431,3566.0,3565.6,0.05996289]
[1732864236632,2.8041,3566.2,3565.6,0.05996289]
[1732864237418,2.80419,3566.1,3565.6,0.05996289]
[1732864239295,3.56286,3566.3,3565.6,0.05996289]
[1732864239793,4.10256419,3566.3,3565.6,0.05996289]
[1732864239998,2.80424,3566.1,3565.6,0.05996289]
[1732864240229,2.00352321,3566.3,3565.6,0.05996289]
[1732864240438,2.8043,3566.0,3565.6,0.05996289]
[1732864240637,2.8043,3566.0,3565.6,2.55996289]
[1732864241528,2.8041,3566.2,3565.6,2.55996289]
[1732864243246,0.7588,3566.8,3565.9,1.24472321]
[1732864243394,0.7588,3567.5,3566.5,2.04482321]
[1732864243596,0.7588,3567.5,3566.7,4.04842321]
[1732864243836,0.7588,3567.8,3566.9,2.80351]
[1732864244031,0.7588,3567.8,3567.0,0.8001]
[1732864244247,0.7588,3567.8,3567.0,0.86011267]
[1732864244775,3.56168,3567.8,3567.0,0.86011267]
[1732864244925,3.0,3567.7,3567.0,0.86011267]
[1732864245123,3.0,3567.6,3567.0,0.86011267]
[1732864245542,5.80302,3567.6,3567.0,0.86011267]
[1732864248028,3.0,3567.6,3567.0,3.66357267]
[1732864248232,3.7588,3567.8,3567.1,2.80339]
[1732864248553,3.56165,3567.8,3567.2,0.05995118]
[1732864248760,3.56165,3567.8,3567.0,0.8001]
[1732864248913,3.56165,3567.8,3567.3,0.05992044]
[1732864249113,3.56165,3567.8,3567.0,0.8001]
[1732864249345,3.56165,3567.8,3567.4,0.05988971]
[1732864249547,3.56165,3567.8,3567.0,0.8001]
[1732864249765,3.56165,3567.8,3567.5,0.05985897]
[1732864249924,3.0,3567.5,3566.2,0.7879]
[1732864250135,3.56212,3567.2,3566.4,2.80387]
[1732864250953,0.7588,3566.6,3565.9,2.80426]
[1732864251250,3.7588,3567.0,3565.6,3.11343629]
[1732864251451,4.0,3567.1,3566.6,2.80377]
[1732864252238,3.7557,3567.5,3566.9,2.80354]
[1732864252450,3.0,3567.6,3567.0,2.80344]
[1732864252650,3.7557,3567.8,3566.7,0.7937]
[1732864252820,0.26073544,3567.7,3566.9,2.80355]
[1732864253027,1.01643544,3567.8,3566.8,2.80363]
[1732864253237,3.55855,3567.8,3566.8,2.80363]
[1732864253535,0.26079959,3567.7,3567.0,2.80347]
[1732864253722,0.68445494,3567.7,3567.1,2.80336]
[1732864253923,0.42365535,3567.7,3567.1,0.06021931]
[1732864254113,0.68446046,3567.7,3567.0,2.80344]
[1732864254316,0.68446046,3567.7,3567.2,0.05969454]
[1732864254516,0.68446046,3567.7,3567.0,2.80344]
[1732864254852,0.68446046,3567.7,3567.3,0.0596638]
[1732864255047,0.68446046,3567.7,3567.0,2.80344]
[1732864255233,0.26080511,3567.7,3567.4,0.05963306]
[1732864255411,0.26080511,3567.7,3567.0,2.80344]
[1732864255616,3.06374511,3567.7,3567.5,0.05960233]
[1732864255827,2.80294,3567.7,3566.9,2.80354]
[1732864256037,2.80294,3567.7,3567.6,0.05957159]
[1732864256217,3.06383929,3567.7,3566.9,2.80354]
[1732864256429,2.80294,3567.7,3567.6,0.05957159]
[1732864256635,3.06389112,3567.7,3566.8,2.80359]
[1732864256859,2.80294,3567.7,3567.6,0.05957159]
[1732864257064,2.80294,3567.7,3566.7,3.5974]
[1732864257065,7.06389136,3567.7,3566.7,0.7937]
[1732864257233,3.06395136,3567.6,3566.8,2.80361]
[1732864257422,3.06395136,3567.6,3566.8,2.86342752]
[1732864257423,0.26095136,3567.5,3566.8,2.86342752]
[1732864258361,3.06406136,3567.5,3566.9,0.05978677]
[1732864258559,0.26095136,3567.4,3566.9,0.05978677]
[1732864258760,0.26095136,3567.4,3566.8,2.80361]
[1732864258967,0.26095136,3567.4,3567.0,0.05978877]
[1732864259127,0.26095136,3567.4,3566.8,2.80361]
[1732864259459,0.26095136,3567.4,3567.1,0.05975803]
[1732864259664,0.26109305,3567.4,3566.8,2.80361]
[1732864259865,2.80311,3567.5,3567.2,0.05972729]
[1732864260166,2.80311,3567.5,3567.3,0.05969655]
[1732864260466,0.7541,3567.3,3566.4,3.58113]
[1732864260666,0.7541,3567.3,3566.6,2.80377]
[1732864260962,0.7541,3567.3,3566.5,2.80385]
[1732864261525,3.0,3567.6,3566.9,2.80354]
[1732864261721,3.7588,3567.6,3566.9,2.80354]
[1732864262473,0.26117918,3567.5,3567.1,2.80339]
[1732864262769,0.26117918,3567.7,3567.1,0.7757]
[1732864263062,0.26117918,3567.6,3567.1,0.7757]
[1732864263268,0.26117918,3567.5,3567.1,0.7757]
[1732864263569,0.26117918,3567.6,3567.1,0.7757]
[1732864263753,2.80294,3567.7,3567.1,0.7757]
[1732864263960,0.26126875,3567.6,3567.1,0.7757]
[1732864264160,2.80294,3567.7,3567.1,0.7757]
[1732864264658,0.26124925,3567.6,3567.1,0.7757]
[1732864264855,0.26124925,3567.5,3567.1,0.7757]
[1732864265168,0.26124925,3567.6,3567.1,0.7757]
[1732864265370,0.26124925,3567.5,3567.1,0.7757]
[1732864265571,3.26124925,3567.7,3567.1,3.57908]
[1732864265777,4.17432027,3567.9,3567.2,2.80329]
[1732864265778,0.26124925,3567.6,3567.2,2.80329]
[1732864265928,3.7563,3567.9,3567.2,2.80329]
[1732864265929,0.41800733,3567.9,3567.4,2.8031]
[1732864266134,0.26126613,3567.8,3567.6,2.803]
[1732864266333,0.26126613,3568.0,3567.7,0.7658]
[1732864266569,0.26126613,3567.9,3567.7,0.7658]
[1732864266743,0.26126613,3568.4,3567.7,0.7658]
[1732864266946,0.26126613,3568.3,3568.0,2.80265]
[1732864267169,4.0,3568.1,3567.8,2.80284]
[1732864267374,4.0,3568.1,3567.9,2.80273]
[1732864267572,0.41800963,3568.6,3568.1,2.80259]
[1732864267775,0.2612626,3568.5,3568.1,2.80256]
[1732864267942,0.2612626,3568.4,3568.1,2.8026]
[1732864268136,0.2612626,3568.3,3568.2,0.05920988]
[1732864268337,0.2612626,3568.7,3568.2,0.05920988]
[1732864268579,0.2612626,3568.6,3568.2,0.05920988]
[1732864268761,0.2612626,3568.5,3568.2,0.05920988]
[1732864268961,0.2612626,3568.4,3568.0,2.80268]
[1732864269136,0.2612626,3568.6,3568.3,0.05917916]
[1732864269332,0.2612626,3568.5,3568.1,2.8026]
[1732864269565,0.2612626,3568.4,3568.1,2.8026]
[1732864269750,0.2612626,3568.6,3568.1,2.8026]
[1732864269950,0.2612626,3568.5,3568.1,2.8026]
[1732864270144,3.41800963,3568.7,3568.1,2.8026]
[1732864270145,0.2612626,3568.4,3568.1,2.8026]
[1732864270356,0.2612626,3568.6,3568.1,2.8026]
[1732864270561,0.2612626,3568.5,3567.9,2.80276]
[1732864270768,0.2612626,3568.4,3567.9,2.80276]
[1732864270981,0.2612626,3568.3,3567.9,2.80276]
[1732864271178,3.22022963,3568.6,3567.7,3.56872]
[1732864271179,0.2612626,3568.5,3567.8,2.80284]
[1732864271391,0.2612626,3568.4,3567.8,5.60568]
[1732864271683,0.2612626,3568.3,3567.9,2.80276]
[1732864271844,0.41800963,3568.7,3567.9,2.80276]
[1732864272040,0.26123829,3568.6,3568.1,2.8026]
[1732864272383,0.26123829,3568.5,3568.1,2.8026]
[1732864272578,0.26123829,3568.4,3568.1,2.8026]
[1732864272751,0.26123829,3568.3,3567.9,2.80276]
[1732864272959,3.22015963,3568.7,3568.0,2.80265]
[1732864273156,3.06357007,3568.6,3567.8,2.80282]
[1732864273384,0.26135007,3568.5,3567.8,2.80282]
[1732864273683,0.26135007,3568.4,3568.0,2.80266]
[1732864273899,0.26135007,3568.3,3567.9,2.80274]
[1732864274043,0.26135007,3568.2,3567.9,2.80274]
[1732864274380,0.26135007,3568.6,3567.9,3.439885]
[1732864274800,0.26135007,3568.5,3567.9,3.439885]
[1732864274965,0.26135007,3568.4,3567.9,3.439885]
[1732864275291,0.26135007,3568.3,3567.9,3.439885]
[1732864275585,0.26135007,3568.2,3567.7,3.56871]
[1732864275750,2.80238,3568.4,3567.7,3.56871]
[1732864275949,1.02015007,3568.3,3567.7,3.56871]
[1732864276149,0.26135007,3568.2,3567.7,0.7658]
[1732864276395,0.26125031,3568.1,3567.4,3.62159]
[1732864276588,0.26125031,3568.1,3567.1,2.80333]
[1732864276589,2.8029,3567.8,3567.1,2.80333]
[1732864276887,2.80295,3567.7,3566.9,0.8324]
[1732864277074,3.06416898,3567.6,3566.9,0.8324]
[1732864277285,0.26109291,3567.5,3566.9,0.8324]
[1732864277592,2.80309,3567.5,3566.9,0.8324]
[1732864277747,2.80309,3567.5,3566.9,1.476373]
[1732864277948,2.80309,3567.5,3566.8,2.80355]
[1732864278383,2.80293,3567.7,3567.0,2.80347]
[1732864278581,0.26103218,3567.6,3567.0,2.80347]
[1732864278954,2.803,3567.6,3566.8,2.80355]
[1732864279290,0.26104082,3567.5,3566.8,2.80355]
[1732864279496,3.06419082,3567.5,3566.9,0.636743]
[1732864279801,2.80315,3567.5,3566.9,3.440283]
[1732864280353,2.80315,3567.5,3566.9,2.80354]
[1732864280582,0.26102102,3567.4,3566.9,2.80354]
[1732864280787,0.26102102,3567.4,3566.7,2.80368]
[1732864281189,2.8032,3567.4,3566.7,2.80371]
[1732864281352,3.56205,3567.3,3566.6,3.56388]
[1732864281557,3.56205,3567.3,3566.6,2.80378]
[1732864281789,3.56205,3567.3,3566.6,3.446461]
[1732864282591,0.2610665,3567.2,3566.6,3.446461]
[1732864282778,3.56205,3567.3,3566.6,3.446461]
[1732864283088,3.06440255,3567.2,3566.4,3.62303]
[1732864283252,0.7588,3567.3,3566.7,0.05544538]
[1732864283449,0.7588,3567.3,3566.9,2.80349]
[1732864283859,0.7588,3567.3,3567.0,0.05563138]
[1732864284084,1.01984545,3567.3,3567.0,0.05563138]